[Event "Kupreichik Memorial Open 2018"]
[Site "Minsk"]
[Date "2018.06.23"]
[Round "10"]
[White "Tkachou, Viktar"]
[Black "Mialik, Artsiom"]
[Result "1/2-1/2"]
[ECO "A04"]
[WhiteElo "1791"]
[BlackElo "1432"]
[Annotator "NA"]
[PlyCount "140"]
[EventDate "2018.06.21"]
[EventCountry "BLR"]
[SourceTitle "playchess.com"]
[Source "ChessBase"]
[SourceQuality "1"]
[TimeControl "900+10"]

1. Nf3 {[%emt 0:00:00]} e6 {[%emt 0:00:01]} 2. c4 {[%emt 0:00:00]} f5 {[%emt 0:00:24]} 3. e3 {[%emt 0:00:02]} Nf6 {[%emt 0:00:04]} 4. Be2 {[%emt 0:00:10]} d5 {[%emt 0:00:16]} 5. b3 {[%emt 0:00:17]} c6 {[%emt 0:00:10]} 6. Bb2 {[%emt 0:00:04]} Be7 {[%emt 0:00:19]} 7. d3 {[%emt 0:00:09]} Nbd7 {[%emt 0:00:40]} 8. Nbd2 {[%emt 0:00:04]} Nc5 {[%emt 0:00:54]} 9. b4 {[%emt 0:00:35]} Ncd7 {[%emt 0:00:25]} 10. a3 {[%emt 0:00:03]} Qc7 {[%emt 0:00:30]} 11. d4 {[%emt 0:00:09]} Ne4 {[%emt 0:00:32]} 12. c5 {[%emt 0:01:29]} Ndf6 {[%emt 0:00:50]} 13. Ne5 {[%emt 0:00:45]} O-O {[%emt 0:01:04]} 14. O-O {[%emt 0:01:01]} Bd7 {[%emt 0:02:23]} 15. h3 {[%emt 0:02:34]} Be8 {[%emt 0:00:52]} 16. Rc1 {[%emt 0:00:26]} Nd7 {[%emt 0:01:38]} 17. Ndf3 {[%emt 0:00:26]} Bf6 {[%emt 0:01:38]} 18. Nxd7 {[%emt 0:00:20]} Qxd7 {[%emt 0:00:39]} 19. Qd3 {[%emt 0:00:29]} Bg6 {[%emt 0:01:18]} 20. Qd1 {[%emt 0:00:25]} Bh5 {[%emt 0:00:29]} 21. Re1 {[%emt 0:00:18]} Bxf3 {[%emt 0:00:12]} 22. Bxf3 {[%emt 0:00:02]} Be7 {[%emt 0:00:20]} 23. Be2 {[%emt 0:00:15]} Rf7 {[%emt 0:00:20]} 24. Bd3 {[%emt 0:01:49]} Raf8 {[%emt 0:00:09]} 25. Qc2 {[%emt 0:01:07]} Bh4 {[%emt 0:00:17]} 26. Re2 {[%emt 0:00:09]} Qd8 {[%emt 0:00:21]} 27. a4 {[%emt 0:01:06]} a6 {[%emt 0:00:57]} 28. Bc3 {[%emt 0:00:21]} Qd7 {[%emt 0:00:41]} 29. Rb1 {[%emt 0:00:14]} Qe7 {[%emt 0:01:11]} 30. b5 {[%emt 0:00:30]} axb5 {[%emt 0:00:17]} 31. axb5 {[%emt 0:00:02]} Bg5 {[%emt 0:00:16]} 32. bxc6 {[%emt 0:00:14]} bxc6 {[%emt 0:00:02]} 33. Rb6 {[%emt 0:00:20]} Rc8 {[%emt 0:00:05]} 34. Bxe4 {[%emt 0:01:03]} fxe4 {[%emt 0:00:04]} 35. Qa4 {[%emt 0:00:35]} Qf6 {[%emt 0:00:30]} 36. Be1 {[%emt 0:00:18]} Rfc7 {[%emt 0:00:10]} 37. Reb2 {[%emt 0:00:11]} Rf7 {[%emt 0:00:09]} 38. Rb8 {[%emt 0:00:26]} Rff8 {[%emt 0:00:09]} 39. Rxc8 {[%emt 0:00:09]} Rxc8 {[%emt 0:00:01]} 40. Qa6 {[%emt 0:00:31]} Qf8 {[%emt 0:00:18]} 41. Rb7 {[%emt 0:00:21]} Qe8 {[%emt 0:00:13]} 42. Qb6 {[%emt 0:00:34]} Bd8 {[%emt 0:00:07]} 43. Qa6 {[%emt 0:00:06]} Bf6 {[%emt 0:00:04]} 44. Ra7 {[%emt 0:00:37]} e5 {[%emt 0:00:14]} 45. Bc3 {[%emt 0:00:18]} exd4 {[%emt 0:00:11]} 46. Bxd4 {[%emt 0:00:02]} Bxd4 {[%emt 0:00:02]} 47. exd4 {[%emt 0:00:03]} e3 {[%emt 0:00:03]} 48. Qb7 {[%emt 0:00:19]} exf2+ {[%emt 0:00:19]} 49. Kxf2 {[%emt 0:00:03]} Qf8+ {[%emt 0:00:05]} 50. Kg3 {[%emt 0:00:15]} Re8 {[%emt 0:00:23]} 51. Qc7 {[%emt 0:00:22]} Re3+ 52. Kh2 {[%emt 0:00:10]} Re6 {[%emt 0:00:22]} 53. Rb7 {[%emt 0:00:05]} Kh8 {[%emt 0:00:09]} 54. Rb8 {[%emt 0:00:14]} Re8 {[%emt 0:00:01]} 55. Rb7 {[%emt 0:00:08]} Re3 {[%emt 0:00:20]} 56. Rb6 {[%emt 0:00:09]} Re6 {[%emt 0:00:10]} 57. Rxc6 {[%emt 0:01:15]} Rxc6 {[%emt 0:00:02]} 58. Qxc6 {[%emt 0:00:01]} Qf4+ {[%emt 0:00:05]} 59. Kg1 {[%emt 0:00:03]} Qe3+ {[%emt 0:00:06]} 60. Kf1 {[%emt 0:00:02]} Qd3+ {[%emt 0:00:06]} 61. Ke1 {[%emt 0:00:06]} Qe3+ {[%emt 0:00:02]} 62. Kf1 {[%emt 0:00:11]} Qd3+ {[%emt 0:00:02]} 63. Kf2 {[%emt 0:00:09]} Qxd4+ {[%emt 0:00:02]} 64. Kg3 {[%emt 0:00:05]} Qe3+ {[%emt 0:00:35]} 65. Kg4 {[%emt 0:00:37]} Qe4+ {[%emt 0:00:03]} 66. Kg3 {[%emt 0:00:04]} Qe3+ {[%emt 0:00:01]} 67. Kh2 {[%emt 0:00:07]} Qf4+ {[%emt 0:00:02]} 68. Kg1 {[%emt 0:00:01]} Qe3+ {[%emt 0:00:08]} 69. Kf1 {[%emt 0:00:01]} Qd3+ {[%emt 0:00:03]} 70. Ke1 {[%emt 0:00:09]} Qe3+ {[%emt 0:00:03]} 1/2-1/2

[Event "Kupreichik Memorial Open 2018"]
[Site "Minsk"]
[Date "2018.06.23"]
[Round "10"]
[White "Mialik, Uladzislau"]
[Black "Kozlov, Valentin"]
[Result "1/2-1/2"]
[ECO "A05"]
[WhiteElo "1768"]
[BlackElo "1553"]
[Annotator "NA"]
[PlyCount "67"]
[EventDate "2018.06.21"]
[EventCountry "BLR"]
[SourceTitle "playchess.com"]
[Source "ChessBase"]
[SourceQuality "1"]
[TimeControl "900+10"]

1. Nf3 {[%emt 0:00:00]} Nf6 {[%emt 0:00:01]} 2. g3 {[%emt 0:00:00]} g6 {[%emt 0:00:03]} 3. Bg2 {[%emt 0:00:00]} Bg7 {[%emt 0:00:01]} 4. d4 {[%emt 0:00:00]} O-O {[%emt 0:00:03]} 5. O-O {[%emt 0:00:00]} d6 {[%emt 0:00:01]} 6. Re1 {[%emt 0:00:00]} c5 {[%emt 0:00:02]} 7. c3 {[%emt 0:00:01]} cxd4 {[%emt 0:00:03]} 8. cxd4 {[%emt 0:00:02]} Nc6 {[%emt 0:00:15]} 9. Nc3 {[%emt 0:00:23]} Bd7 {[%emt 0:00:20]} 10. e4 {[%emt 0:00:12]} Rc8 {[%emt 0:00:28]} 11. Qd2 {[%emt 0:02:17]} a6 {[%emt 0:00:08]} 12. b3 {[%emt 0:00:17]} Re8 {[%emt 0:00:38]} 13. Bb2 {[%emt 0:00:17]} Qb6 {[%emt 0:00:49]} 14. Rac1 {[%emt 0:01:10]} Bg4 {[%emt 0:01:07]} 15. d5 {[%emt 0:04:52]} Bxf3 {[%emt 0:01:07]} 16. Bxf3 {[%emt 0:00:01]} Ne5 {[%emt 0:00:02]} 17. Bg2 {[%emt 0:00:12]} Nfg4 {[%emt 0:01:24]} 18. Na4 {[%emt 0:02:38]} Qxf2+ {[%emt 0:01:01]} 19. Qxf2 {[%emt 0:00:08]} Nxf2 {[%emt 0:00:03]} 20. Bxe5 {[%emt 0:03:24]} Bxe5 {[%emt 0:00:32]} 21. Kxf2 {[%emt 0:00:40]} b5 {[%emt 0:00:29]} 22. Bh3 {[%emt 0:01:19]} Rxc1 {[%emt 0:00:36]} 23. Rxc1 {[%emt 0:00:00]} bxa4 {[%emt 0:00:01]} 24. Bd7 {[%emt 0:00:04]} axb3 {[%emt 0:00:32]} 25. axb3 {[%emt 0:00:28]} Rb8 {[%emt 0:00:24]} 26. Rc8+ {[%emt 0:00:43]} Rxc8 {[%emt 0:00:01]} 27. Bxc8 {[%emt 0:00:01]} a5 {[%emt 0:00:00]} 28. Kf3 {[%emt 0:00:07]} h5 {[%emt 0:00:21]} 29. h3 {[%emt 0:00:08]} Kg7 {[%emt 0:00:47]} 30. g4 {[%emt 0:00:04]} hxg4+ {[%emt 0:00:14]} 31. hxg4 {[%emt 0:00:13]} Kf6 {[%emt 0:00:27]} 32. Bd7 {[%emt 0:00:01]} e6 {[%emt 0:00:29]} 33. Bc6 {[%emt 0:00:19]} exd5 {[%emt 0:00:39]} 34. Bxd5 {[%emt 0:00:02]} 1/2-1/2

[Event "Kupreichik Memorial Open 2018"]
[Site "Minsk"]
[Date "2018.06.23"]
[Round "10"]
[White "Zagorskii, Artem"]
[Black "Ilyuchyk, Yana"]
[Result "0-1"]
[ECO "B62"]
[WhiteElo "1721"]
[BlackElo "1971"]
[Annotator "NA"]
[PlyCount "72"]
[EventDate "2018.06.21"]
[EventCountry "BLR"]
[SourceTitle "playchess.com"]
[Source "ChessBase"]
[SourceQuality "1"]
[TimeControl "900+10"]

1. e4 {[%emt 0:00:00]} c5 {[%emt 0:00:01]} 2. Nf3 {[%emt 0:00:00]} Nc6 {[%emt 0:00:02]} 3. d4 {[%emt 0:00:00]} cxd4 {[%emt 0:00:01]} 4. Nxd4 {[%emt 0:00:01]} Nf6 {[%emt 0:00:02]} 5. Nc3 {[%emt 0:00:02]} d6 {[%emt 0:00:01]} 6. Bg5 {[%emt 0:00:08]} e6 {[%emt 0:00:02]} 7. Qd3 {[%emt 0:00:02]} Be7 {[%emt 0:00:24]} 8. O-O-O {[%emt 0:00:08]} O-O {[%emt 0:00:06]} 9. Bxf6 {[%emt 0:00:29]} Bxf6 {[%emt 0:00:47]} 10. Nxc6 {[%emt 0:00:02]} bxc6 {[%emt 0:00:02]} 11. Qxd6 {[%emt 0:01:29]} Qa5 {[%emt 0:01:48]} 12. Rd3 {[%emt 0:06:26]} Ba6 {[%emt 0:00:39]} 13. Re3 {[%emt 0:01:01]} Be5 {[%emt 0:02:18]} 14. Qxc6 {[%emt 0:03:22]} Bxf1 {[%emt 0:00:03]} 15. Rxf1 {[%emt 0:00:21]} Rac8 {[%emt 0:00:17]} 16. Qd7 {[%emt 0:01:10]} Rc7 {[%emt 0:01:09]} 17. Qd3 {[%emt 0:00:40]} Rxc3 {[%emt 0:01:22]} 18. bxc3 {[%emt 0:00:09]} Rd8 {[%emt 0:00:04]} 19. Qc4 {[%emt 0:01:31]} Qa3+ {[%emt 0:00:05]} 20. Kb1 {[%emt 0:00:01]} Rb8+ {[%emt 0:00:03]} 21. Qb3 {[%emt 0:00:01]} Rxb3+ {[%emt 0:00:03]} 22. cxb3 {[%emt 0:00:00]} g5 {[%emt 0:00:13]} 23. g3 {[%emt 0:00:08]} g4 {[%emt 0:00:04]} 24. Rd3 {[%emt 0:00:17]} a5 {[%emt 0:00:25]} 25. Rc1 {[%emt 0:00:35]} Qc5 {[%emt 0:00:21]} 26. Rc2 {[%emt 0:00:17]} Kg7 {[%emt 0:00:19]} 27. Kc1 Qb5 {[%emt 0:00:08]} 28. Kd2 {[%emt 0:00:52]} Bf6 {[%emt 0:00:12]} 29. Ke2 {[%emt 0:00:15]} Qc6 {[%emt 0:00:05]} 30. e5 {[%emt 0:00:22]} Bxe5 31. Re3 Bd4 {[%emt 0:00:16]} 32. Rd3 {[%emt 0:00:20]} Qe4+ {[%emt 0:00:03]} 33. Kd2 {[%emt 0:00:04]} Bxf2 {[%emt 0:00:04]} 34. Rc1 {[%emt 0:00:01]} Qg2 {[%emt 0:00:18]} 35. Rd1 {[%emt 0:00:10]} Bc5+ {[%emt 0:00:06]} 36. Kc1 {[%emt 0:00:06]} Ba3+ {[%emt 0:00:01]} 0-1

[Event "Kupreichik Memorial Open 2018"]
[Site "Minsk"]
[Date "2018.06.23"]
[Round "10"]
[White "Sukalina, Alina"]
[Black "Zeliantsova, Kseniya"]
[Result "0-1"]
[ECO "E83"]
[WhiteElo "1673"]
[BlackElo "1844"]
[Annotator "NA"]
[PlyCount "119"]
[EventDate "2018.06.21"]
[EventCountry "BLR"]
[SourceTitle "playchess.com"]
[Source "ChessBase"]
[SourceQuality "1"]
[TimeControl "900+10"]

1. d4 {[%emt 0:00:00]} Nf6 {[%emt 0:00:01]} 2. c4 {[%emt 0:00:00]} g6 {[%emt 0:00:01]} 3. Nc3 {[%emt 0:00:01]} Bg7 {[%emt 0:00:01]} 4. e4 {[%emt 0:00:04]} d6 {[%emt 0:00:01]} 5. f3 {[%emt 0:00:06]} O-O {[%emt 0:00:02]} 6. Be3 {[%emt 0:00:03]} Nc6 {[%emt 0:00:02]} 7. Qd2 {[%emt 0:00:36]} e5 {[%emt 0:00:02]} 8. Nge2 {[%emt 0:00:34]} a6 {[%emt 0:00:22]} 9. d5 {[%emt 0:00:12]} Ne7 {[%emt 0:00:07]} 10. Ng3 {[%emt 0:00:19]} c6 {[%emt 0:01:22]} 11. Bd3 {[%emt 0:00:52]} cxd5 {[%emt 0:00:20]} 12. cxd5 {[%emt 0:00:04]} b5 {[%emt 0:00:37]} 13. b4 {[%emt 0:00:10]} Bd7 {[%emt 0:00:12]} 14. O-O {[%emt 0:00:08]} Nc8 {[%emt 0:00:17]} 15. Qf2 {[%emt 0:00:10]} Rb8 {[%emt 0:00:01]} 16. Rfc1 {[%emt 0:04:13]} Nb6 {[%emt 0:00:40]} 17. Qe2 {[%emt 0:00:04]} h5 {[%emt 0:01:17]} 18. Nf1 {[%emt 0:00:52]} Nh7 {[%emt 0:04:41]} 19. Nd2 {[%emt 0:01:14]} Kh8 {[%emt 0:01:13]} 20. Nb3 {[%emt 0:00:50]} f5 {[%emt 0:03:30]} 21. Na5 {[%emt 0:00:39]} f4 {[%emt 0:00:13]} 22. Bf2 {[%emt 0:00:12]} Qf6 {[%emt 0:00:13]} 23. Nb1 {[%emt 0:05:00]} h4 {[%emt 0:00:42]} 24. h3 {[%emt 0:00:38]} Na4 {[%emt 0:01:18]} 25. Nc3 {[%emt 0:00:15]} Nxc3 {[%emt 0:00:02]} 26. Rxc3 {[%emt 0:00:01]} Rbc8 {[%emt 0:00:39]} 27. Rac1 {[%emt 0:00:05]} Ng5 {[%emt 0:00:49]} 28. Kh2 {[%emt 0:01:09]} Nf7 {[%emt 0:00:10]} 29. Rxc8 {[%emt 0:00:38]} Bxc8 {[%emt 0:00:04]} 30. Nc6 {[%emt 0:00:27]} g5 {[%emt 0:00:39]} 31. Rc2 {[%emt 0:00:18]} Bd7 {[%emt 0:00:07]} 32. Na5 {[%emt 0:00:05]} Nh6 {[%emt 0:00:25]} 33. Qd1 {[%emt 0:00:06]} Qg6 {[%emt 0:00:05]} 34. Be2 {[%emt 0:00:05]} Re8 {[%emt 0:00:20]} 35. Rc7 {[%emt 0:00:20]} Re7 {[%emt 0:00:09]} 36. Ra7 {[%emt 0:00:10]} Rf7 {[%emt 0:00:08]} 37. Rxa6 {[%emt 0:00:10]} Bf8 {[%emt 0:00:12]} 38. Rb6 {[%emt 0:00:14]} Rg7 {[%emt 0:00:12]} 39. Rb8 {[%emt 0:00:10]} Rf7 {[%emt 0:00:06]} 40. Bxb5 {[%emt 0:00:10]} Bxb5 {[%emt 0:00:12]} 41. Rxb5 {[%emt 0:00:01]} g4 {[%emt 0:00:12]} 42. hxg4 {[%emt 0:00:19]} Kg8 {[%emt 0:00:11]} 43. Rb7 {[%emt 0:00:13]} Rf6 {[%emt 0:00:05]} 44. Nc6 {[%emt 0:00:05]} Kh8 {[%emt 0:00:07]} 45. Rb8 {[%emt 0:00:06]} Kh7 {[%emt 0:00:12]} 46. Rb7+ {[%emt 0:00:06]} Bg7 {[%emt 0:00:04]} 47. Nd8 {[%emt 0:00:15]} Nf7 {[%emt 0:00:13]} 48. Nxf7 {[%emt 0:00:05]} Rxf7 49. Rxf7 {[%emt 0:00:03]} Qxf7 {[%emt 0:00:02]} 50. Qc2 {[%emt 0:00:12]} Qb7 {[%emt 0:00:09]} 51. a3 {[%emt 0:00:04]} Qa6 {[%emt 0:00:15]} 52. Qb2 {[%emt 0:00:22]} h3 {[%emt 0:00:24]} 53. b5 {[%emt 0:00:19]} Qb7 {[%emt 0:00:19]} 54. gxh3 {[%emt 0:00:03]} Bf6 {[%emt 0:00:02]} 55. a4 {[%emt 0:00:13]} Bd8 {[%emt 0:00:01]} 56. b6 {[%emt 0:00:03]} Qa6 {[%emt 0:00:25]} 57. b7 {[%emt 0:00:18]} Bc7 {[%emt 0:00:01]} 58. Kg2 {[%emt 0:00:16]} Bb8 {[%emt 0:00:01]} 59. Qb3 {[%emt 0:00:10]} Qa5 {[%emt 0:00:05]} 60. Qb5 {time} 0-1

[Event "Kupreichik Memorial Open 2018"]
[Site "Minsk"]
[Date "2018.06.23"]
[Round "10"]
[White "Kashtelyan, Valentin"]
[Black "Kruglikova, Viktorija"]
[Result "0-1"]
[ECO "B29"]
[WhiteElo "1604"]
[BlackElo "1839"]
[Annotator "NA"]
[PlyCount "114"]
[EventDate "2018.06.21"]
[EventCountry "BLR"]
[SourceTitle "playchess.com"]
[Source "ChessBase"]
[SourceQuality "1"]
[TimeControl "900+10"]

1. e4 {[%emt 0:00:00]} c5 {[%emt 0:00:02]} 2. Nf3 {[%emt 0:00:02]} Nf6 {[%emt 0:00:01]} 3. d3 {[%emt 0:00:34]} d5 {[%emt 0:00:07]} 4. exd5 {[%emt 0:00:01]} Nxd5 {[%emt 0:00:01]} 5. Be2 {[%emt 0:00:07]} Nc6 {[%emt 0:00:01]} 6. O-O {[%emt 0:00:02]} e6 {[%emt 0:00:11]} 7. Bd2 {[%emt 0:00:03]} Be7 {[%emt 0:00:01]} 8. Nc3 {[%emt 0:00:03]} Bf6 {[%emt 0:00:03]} 9. Qe1 {[%emt 0:00:39]} O-O {[%emt 0:00:02]} 10. Rb1 {[%emt 0:00:01]} Ncb4 {[%emt 0:00:03]} 11. Nxd5 {[%emt 0:00:37]} Nxd5 {[%emt 0:00:01]} 12. c3 {[%emt 0:00:10]} Qb6 {[%emt 0:00:18]} 13. Qc1 {[%emt 0:00:30]} Bd7 {[%emt 0:00:08]} 14. Bg5 {[%emt 0:00:21]} Bxg5 {[%emt 0:00:04]} 15. Qxg5 {[%emt 0:00:08]} h6 {[%emt 0:00:02]} 16. Qd2 {[%emt 0:00:21]} Qd6 {[%emt 0:00:03]} 17. Ne1 {[%emt 0:00:46]} Nf4 {[%emt 0:00:10]} 18. Bf3 {[%emt 0:00:15]} Rab8 {[%emt 0:00:20]} 19. Qe3 {[%emt 0:00:19]} Bb5 {[%emt 0:00:10]} 20. Rd1 {[%emt 0:00:24]} Nd5 {[%emt 0:00:02]} 21. Qd2 {[%emt 0:00:12]} Ba4 {[%emt 0:00:25]} 22. b3 {[%emt 0:00:16]} Bc6 {[%emt 0:00:02]} 23. Nc2 {[%emt 0:00:20]} Rbd8 {[%emt 0:00:03]} 24. Qe1 {[%emt 0:00:16]} Nf4 {[%emt 0:00:05]} 25. Bxc6 {[%emt 0:00:17]} Qxc6 {[%emt 0:00:01]} 26. Qe4 {[%emt 0:00:31]} Qxe4 {[%emt 0:00:18]} 27. dxe4 {[%emt 0:00:03]} Ne2+ {[%emt 0:00:01]} 28. Kh1 {[%emt 0:00:02]} Nxc3 {[%emt 0:00:02]} 29. Ra1 {[%emt 0:00:07]} Nxe4 {[%emt 0:00:02]} 30. f3 {[%emt 0:00:22]} Nc3 {[%emt 0:00:12]} 31. Ne3 {[%emt 0:00:13]} b5 {[%emt 0:00:02]} 32. Rfc1 {[%emt 0:00:21]} Rd3 {[%emt 0:00:11]} 33. Ng4 {[%emt 0:00:27]} b4 {[%emt 0:00:05]} 34. Ne5 {[%emt 0:00:14]} Rd2 {[%emt 0:00:01]} 35. a3 {[%emt 0:00:34]} Rfd8 {[%emt 0:00:28]} 36. h3 {[%emt 0:00:10]} a5 {[%emt 0:00:20]} 37. axb4 {[%emt 0:00:05]} axb4 {[%emt 0:00:02]} 38. Ra5 {[%emt 0:00:16]} R8d5 {[%emt 0:00:05]} 39. Ra8+ {[%emt 0:00:41]} Kh7 {[%emt 0:00:01]} 40. Nxf7 {[%emt 0:00:10]} Rb2 {[%emt 0:00:03]} 41. h4 {[%emt 0:00:07]} Rxb3 {[%emt 0:00:03]} 42. Re1 {[%emt 0:00:41]} Rb1 {[%emt 0:00:06]} 43. Rxb1 Nxb1 {[%emt 0:00:02]} 44. f4 {[%emt 0:00:40]} Nd2 {[%emt 0:00:06]} 45. g4 {[%emt 0:00:08]} g6 {[%emt 0:00:58]} 46. Ne5 {[%emt 0:00:08]} b3 {[%emt 0:00:38]} 47. Ra7+ {[%emt 0:00:03]} Kg8 {[%emt 0:00:01]} 48. Nxg6 {[%emt 0:00:08]} b2 {[%emt 0:00:10]} 49. Ne7+ {[%emt 0:00:45]} Kf8 {[%emt 0:00:01]} 50. Ng6+ {[%emt 0:00:13]} Ke8 {[%emt 0:00:03]} 51. Rb7 {[%emt 0:04:33]} b1=Q+ {[%emt 0:00:04]} 52. Rxb1 {[%emt 0:00:04]} Nxb1 {[%emt 0:00:02]} 53. Kg2 {[%emt 0:00:13]} c4 {[%emt 0:00:02]} 54. g5 {[%emt 0:01:04]} c3 {[%emt 0:00:10]} 55. gxh6 {[%emt 0:00:13]} Rh5 {[%emt 0:00:03]} 56. h7 {[%emt 0:00:30]} Rxh7 {[%emt 0:00:02]} 57. Ne5 {[%emt 0:00:02]} Rd7 {[%emt 0:00:08]} 0-1

[Event "Kupreichik Memorial Open 2018"]
[Site "Minsk"]
[Date "2018.06.23"]
[Round "10"]
[White "Stsepkina, Yauheniya"]
[Black "Rybakova, Polina"]
[Result "1/2-1/2"]
[ECO "E80"]
[WhiteElo "1591"]
[BlackElo "1826"]
[Annotator "NA"]
[PlyCount "87"]
[EventDate "2018.06.21"]
[EventCountry "BLR"]
[SourceTitle "playchess.com"]
[Source "ChessBase"]
[SourceQuality "1"]
[TimeControl "900+10"]

1. d4 {[%emt 0:00:00]} Nf6 {[%emt 0:00:03]} 2. c4 {[%emt 0:00:00]} g6 {[%emt 0:00:00]} 3. Nc3 {[%emt 0:00:00]} Bg7 {[%emt 0:00:01]} 4. e4 {[%emt 0:00:00]} d6 {[%emt 0:00:01]} 5. f3 {[%emt 0:00:00]} c6 {[%emt 0:00:13]} 6. Be3 {[%emt 0:00:02]} a6 {[%emt 0:00:09]} 7. Qd2 {[%emt 0:00:40]} b5 {[%emt 0:00:07]} 8. Bd3 {[%emt 0:00:38]} Nbd7 {[%emt 0:00:40]} 9. Nge2 {[%emt 0:00:22]} Nb6 {[%emt 0:00:21]} 10. cxb5 {[%emt 0:01:38]} cxb5 {[%emt 0:00:20]} 11. b3 {[%emt 0:00:23]} Bd7 {[%emt 0:00:47]} 12. O-O {[%emt 0:00:26]} O-O {[%emt 0:00:04]} 13. Rac1 {[%emt 0:00:26]} b4 {[%emt 0:00:26]} 14. Nd1 {[%emt 0:00:20]} a5 {[%emt 0:00:02]} 15. Nb2 {[%emt 0:00:08]} d5 {[%emt 0:00:45]} 16. e5 {[%emt 0:00:24]} Ne8 {[%emt 0:00:12]} 17. Ng3 {[%emt 0:00:02]} Nc7 {[%emt 0:00:47]} 18. f4 {[%emt 0:00:08]} e6 {[%emt 0:00:17]} 19. Rc2 {[%emt 0:01:21]} Nb5 {[%emt 0:02:01]} 20. Rfc1 {[%emt 0:00:18]} Rc8 {[%emt 0:02:03]} 21. Rxc8 {[%emt 0:00:21]} Nxc8 {[%emt 0:00:02]} 22. Na4 {[%emt 0:00:12]} Nca7 {[%emt 0:01:33]} 23. Nc5 {[%emt 0:01:04]} Nc3 {[%emt 0:00:17]} 24. a3 {[%emt 0:03:24]} Bb5 {[%emt 0:02:06]} 25. axb4 {[%emt 0:01:00]} axb4 {[%emt 0:00:17]} 26. Ra1 {[%emt 0:02:42]} Bxd3 {[%emt 0:00:18]} 27. Rxa7 {[%emt 0:01:26]} Bb5 {[%emt 0:00:47]} 28. Rb7 {[%emt 0:00:02]} Qa5 {[%emt 0:00:52]} 29. f5 {[%emt 0:02:04]} gxf5 {[%emt 0:00:54]} 30. Nxe6 {[%emt 0:00:15]} fxe6 {[%emt 0:00:53]} 31. Rxg7+ {[%emt 0:00:09]} Kxg7 {[%emt 0:00:02]} 32. Bh6+ {[%emt 0:00:02]} Kf7 {[%emt 0:01:17]} 33. Bxf8 {[%emt 0:00:13]} Kxf8 {[%emt 0:01:16]} 34. Qh6+ {[%emt 0:00:02]} Ke7 {[%emt 0:00:10]} 35. Qxh7+ {[%emt 0:00:07]} Kd8 {[%emt 0:00:09]} 36. Qg8+ {[%emt 0:00:05]} Be8 {[%emt 0:00:10]} 37. Qxe6 {[%emt 0:00:18]} Qa1+ {[%emt 0:00:14]} 38. Nf1 {[%emt 0:00:04]} Ne2+ {[%emt 0:00:35]} 39. Kf2 {[%emt 0:00:02]} Qxd4+ {[%emt 0:00:14]} 40. Kxe2 {[%emt 0:00:12]} Bb5+ {[%emt 0:00:08]} 41. Ke1 {[%emt 0:00:07]} Qc3+ {[%emt 0:00:14]} 42. Kf2 {[%emt 0:00:19]} Qd4+ {[%emt 0:00:04]} 43. Ke1 {[%emt 0:00:25]} Qc3+ {[%emt 0:00:14]} 44. Kf2 {[%emt 0:00:07]} 1/2-1/2

[Event "Kupreichik Memorial Open 2018"]
[Site "Minsk"]
[Date "2018.06.23"]
[Round "10"]
[White "Drobyshevsky, Vasily"]
[Black "Bezenson, Anton"]
[Result "0-1"]
[ECO "B14"]
[WhiteElo "1551"]
[BlackElo "1732"]
[Annotator "NA"]
[PlyCount "66"]
[EventDate "2018.06.21"]
[EventCountry "BLR"]
[SourceTitle "playchess.com"]
[Source "ChessBase"]
[SourceQuality "1"]
[TimeControl "900+10"]

1. c4 {[%emt 0:00:00]} Nf6 {[%emt 0:00:01]} 2. Nc3 {[%emt 0:00:00]} c5 {[%emt 0:00:20]} 3. e3 {[%emt 0:00:00]} d5 {[%emt 0:00:01]} 4. d4 {[%emt 0:00:00]} cxd4 {[%emt 0:00:06]} 5. exd4 {[%emt 0:00:00]} g6 {[%emt 0:00:14]} 6. Nf3 {[%emt 0:00:00]} Bg7 {[%emt 0:00:01]} 7. Be2 {[%emt 0:00:25]} O-O {[%emt 0:00:15]} 8. O-O {[%emt 0:00:05]} Nc6 {[%emt 0:00:14]} 9. c5 {[%emt 0:00:02]} Ne4 {[%emt 0:00:25]} 10. Bb5 {[%emt 0:00:52]} Bg4 {[%emt 0:01:18]} 11. Bxc6 {[%emt 0:00:06]} bxc6 {[%emt 0:00:07]} 12. Be3 {[%emt 0:00:15]} Rb8 {[%emt 0:00:12]} 13. Rb1 {[%emt 0:03:45]} Nxc3 {[%emt 0:01:56]} 14. bxc3 {[%emt 0:00:06]} Qa5 {[%emt 0:00:03]} 15. Qd2 {[%emt 0:01:17]} Bf5 {[%emt 0:01:54]} 16. Rxb8 {[%emt 0:00:10]} Rxb8 {[%emt 0:00:02]} 17. Bf4 {[%emt 0:00:27]} Rb7 {[%emt 0:03:17]} 18. Ne5 {[%emt 0:00:37]} Bxe5 {[%emt 0:01:01]} 19. Bxe5 {[%emt 0:00:09]} f6 {[%emt 0:00:01]} 20. Bg3 {[%emt 0:00:03]} Qa3 {[%emt 0:02:21]} 21. Re1 {[%emt 0:01:07]} e6 {[%emt 0:00:41]} 22. Bd6 {[%emt 0:00:20]} Kg7 {[%emt 0:00:12]} 23. h3 {[%emt 0:00:44]} h5 {[%emt 0:01:03]} 24. Qf4 {[%emt 0:04:13]} Qxc3 {[%emt 0:00:26]} 25. Re3 {[%emt 0:00:05]} Qc1+ {[%emt 0:00:08]} 26. Kh2 {[%emt 0:00:03]} Rb1 {[%emt 0:00:04]} 27. Bc7 {[%emt 0:00:58]} g5 {[%emt 0:01:20]} 28. Qd6 {[%emt 0:00:23]} Qg1+ {[%emt 0:00:22]} 29. Kg3 {[%emt 0:00:04]} h4+ {[%emt 0:00:05]} 30. Kf3 {[%emt 0:00:05]} Qd1+ {[%emt 0:00:12]} 31. Re2 {[%emt 0:00:10]} Be4+ {[%emt 0:00:13]} 32. Kg4 {[%emt 0:01:50]} Qxe2+ {[%emt 0:00:02]} 33. f3 {[%emt 0:00:01]} Qxg2+ 0-1

[Event "Kupreichik Memorial Open 2018"]
[Site "Minsk"]
[Date "2018.06.23"]
[Round "10"]
[White "Ivanytska, Liudmyla"]
[Black "Boiko, Aleksei"]
[Result "0-1"]
[ECO "B03"]
[WhiteElo "1545"]
[BlackElo "1611"]
[Annotator "NA"]
[PlyCount "72"]
[EventDate "2018.06.21"]
[EventCountry "BLR"]
[SourceTitle "playchess.com"]
[Source "ChessBase"]
[SourceQuality "1"]
[TimeControl "900+10"]

1. e4 {[%emt 0:00:00]} Nf6 {[%emt 0:00:02]} 2. e5 {[%emt 0:00:00]} Nd5 {[%emt 0:00:01]} 3. c4 {[%emt 0:00:00]} Nb6 {[%emt 0:00:01]} 4. d4 {[%emt 0:00:00]} d6 {[%emt 0:00:01]} 5. exd6 {[%emt 0:00:18]} exd6 {[%emt 0:00:01]} 6. h3 {[%emt 0:00:06]} Bf5 {[%emt 0:00:09]} 7. Nf3 {[%emt 0:00:02]} Be7 {[%emt 0:00:02]} 8. Be2 {[%emt 0:00:04]} O-O {[%emt 0:00:03]} 9. O-O {[%emt 0:00:03]} Nc6 {[%emt 0:00:02]} 10. Be3 {[%emt 0:00:06]} Re8 {[%emt 0:00:08]} 11. a3 {[%emt 0:00:01]} a5 {[%emt 0:00:45]} 12. d5 {[%emt 0:00:13]} Ne5 {[%emt 0:00:01]} 13. Nxe5 {[%emt 0:00:06]} dxe5 {[%emt 0:00:02]} 14. Nd2 {[%emt 0:00:10]} Bf6 {[%emt 0:00:39]} 15. Bxb6 {[%emt 0:00:30]} cxb6 {[%emt 0:00:01]} 16. Qb3 {[%emt 0:00:03]} a4 {[%emt 0:00:20]} 17. Qe3 {[%emt 0:00:18]} e4 {[%emt 0:00:18]} 18. Ra2 {[%emt 0:00:13]} b5 {[%emt 0:00:20]} 19. b4 {[%emt 0:00:25]} axb3 {[%emt 0:00:26]} 20. Nxb3 {[%emt 0:00:03]} bxc4 {[%emt 0:00:15]} 21. Bxc4 {[%emt 0:00:03]} Qd6 {[%emt 0:01:14]} 22. Nd2 {[%emt 0:00:52]} b5 {[%emt 0:01:03]} 23. Bxb5 {[%emt 0:00:52]} Qxd5 {[%emt 0:00:01]} 24. Bc4 {[%emt 0:00:02]} Qd4 {[%emt 0:00:08]} 25. Qxd4 {[%emt 0:00:09]} Bxd4 {[%emt 0:00:01]} 26. Nb3 {[%emt 0:00:04]} Bb6 {[%emt 0:00:14]} 27. a4 {[%emt 0:00:01]} Be6 {[%emt 0:01:55]} 28. Bxe6 {[%emt 0:00:07]} Rxe6 {[%emt 0:00:01]} 29. a5 {[%emt 0:00:00]} Ba7 {[%emt 0:00:06]} 30. Rc2 {[%emt 0:00:29]} e3 {[%emt 0:00:23]} 31. fxe3 {[%emt 0:00:03]} Rxe3 {[%emt 0:00:02]} 32. Na1 {[%emt 0:00:39]} Rxh3+ {[%emt 0:00:02]} 33. Rff2 {[%emt 0:00:07]} Ra3 {[%emt 0:00:11]} 34. Rc1 {[%emt 0:00:16]} g6 {[%emt 0:00:15]} 35. Rcf1 {[%emt 0:00:07]} Bxf2+ {[%emt 0:00:09]} 36. Kxf2 {[%emt 0:00:02]} R8xa5 {[%emt 0:00:02]} 0-1